bitfinex-derivatives/quotes_ETHF0:USTF0_20251210
["timestamp","ask_amount","ask_price","bid_price","bid_amount"]
[1765398836941,3.2078,3400.2,3399.4,0.14705]
[1765398837342,3.21040873,3400.2,3399.4,0.14945938]
[1765398837538,2.2986,3402.0,3400.1,4.97757205]
[1765398837737,2.2986,3402.0,3401.1,3.2078]
[1765398837941,2.2986,3402.0,3401.4,3.2078]
[1765398838143,2.2986,3402.0,3401.6,3.2078]
[1765398838334,2.2986,3402.0,3401.2,3.2078]
[1765398838534,2.30222316,3402.0,3401.2,3.2078]
[1765398838742,1.76977205,3401.5,3401.2,3.2078]
[1765398839042,4.97757205,3401.5,3400.7,0.0044143]
[1765398839240,1.76977205,3401.0,3400.7,0.0044143]
[1765398840345,2.2347,3400.2,3400.1,3.2078]
[1765398840750,2.2347,3400.2,3400.1,6.4156]
[1765398841137,2.2347,3401.1,3400.1,6.4156]
[1765398841445,1.77418635,3400.9,3400.3,0.0044143]
[1765398842344,0.0044143,3400.9,3400.3,0.0044143]
[1765398842745,0.0044143,3400.9,3400.6,3.2078]
[1765398843443,2.30222316,3402.0,3400.9,0.14699]
[1765398843653,0.00362316,3402.0,3401.5,3.2078]
[1765398844445,0.00362316,3402.0,3401.9,3.2078]
[1765398844649,0.00362316,3402.0,3401.9,3.21017004]
[1765398845646,8.23832316,3402.0,3401.9,0.00237004]
[1765398845846,2.23832316,3402.0,3401.9,0.00237004]
[1765398846046,0.00362316,3402.0,3401.9,3.21017004]
[1765398846540,2.23832316,3402.0,3401.9,3.21017004]
[1765398846941,0.14697,3401.3,3400.3,3.2122143]
[1765398847142,0.14697,3401.3,3399.3,2.2039]
[1765398847343,0.147,3400.7,3399.3,2.2039]
[1765398847548,0.147,3400.6,3399.3,2.2039]
[1765398847848,0.147,3400.6,3399.3,2.20649495]
[1765398848048,0.0044143,3400.3,3399.6,0.0044143]
[1765398848445,0.0044143,3400.3,3400.2,2.2039]
[1765398849152,0.14695,3401.9,3400.2,2.2039]
[1765398849355,0.14695,3401.9,3400.2,2.35092]
[1765398849548,0.00362316,3402.0,3400.6,0.147]
[1765398849959,3.2078,3401.0,3400.7,0.147]
[1765398850256,3.2078,3401.4,3400.7,0.147]
[1765398850464,3.2078,3401.0,3400.2,5.4117]
[1765398850656,3.2078,3401.4,3400.5,0.147]
[1765398850961,0.00362316,3402.0,3401.0,2.2039]
[1765398850962,3.2078,3401.8,3401.0,2.2039]
[1765398851257,3.2078,3401.8,3401.2,3.2078]
[1765398851459,3.2078,3401.8,3401.5,0.14696]
[1765398852349,3.2078,3401.8,3401.3,0.0044143]
[1765398853256,3.2078,3401.8,3401.3,0.1513843]
[1765398853450,0.00362316,3402.0,3401.6,3.2078]
[1765398853656,0.00362316,3402.0,3401.3,0.0044143]
[1765398853953,0.00362316,3402.0,3401.3,3.2122143]
[1765398854157,0.00362316,3402.0,3401.3,0.0044143]
[1765398854461,3.2078,3401.6,3401.3,0.0044143]
[1765398855760,3.21142316,3402.0,3401.3,0.1513843]
[1765398855960,3.21142316,3402.0,3401.3,0.0044143]
[1765398856155,0.00362316,3402.0,3401.3,0.0044143]
[1765398856461,0.00362316,3402.0,3401.6,3.2078]
[1765398857163,0.80998941,3402.0,3401.6,3.2078]
[1765398857460,0.00362316,3402.0,3401.6,3.2078]
[1765398857761,0.80645158,3402.3,3401.9,0.14695]
[1765398857960,2.10423245,3403.3,3402.6,0.14691]
[1765398857961,3.2078,3402.8,3402.6,0.14691]
[1765398858155,3.2078,3402.8,3402.7,0.14691]
[1765398858356,3.2078,3402.8,3402.4,0.14692]
[1765398858656,0.80612135,3402.7,3402.0,2.2633]
[1765398858965,0.8061215,3402.6,3402.0,2.41287185]
[1765398859157,0.8061215,3402.5,3402.0,2.41287185]
[1765398859356,0.8061215,3402.4,3402.0,2.41287185]
[1765398859556,0.00341982,3402.7,3402.0,2.41287185]
[1765398859858,0.80608834,3402.6,3402.0,2.41287185]
[1765398860060,0.80608834,3402.5,3402.0,2.26593185]
[1765398860255,4.01388834,3402.4,3402.0,0.00263185]
[1765398860457,1.56479485,3402.1,3401.9,0.1]
[1765398860660,5.57868319,3402.0,3401.9,0.1]
[1765398860967,12.10466937,3402.0,3401.3,0.0044143]
[1765398861158,4.77583321,3401.4,3400.4,0.14701]
[1765398861358,2.37412155,3401.3,3400.4,0.14701]
[1765398861565,0.80608834,3401.2,3400.4,0.15016458]
[1765398861760,3.2078,3400.9,3400.4,0.00315458]
[1765398862071,0.80608834,3400.8,3400.4,0.00315458]
[1765398862362,3.2078,3400.5,3400.4,0.00315458]
[1765398862663,6.10466937,3400.5,3400.4,0.00315458]
[1765398862965,0.80608834,3400.5,3400.4,0.00315458]
[1765398863266,0.80608834,3400.5,3400.4,0.15016458]
[1765398863566,0.80608834,3400.5,3400.4,3.35796458]
[1765398863766,0.0044143,3401.0,3400.9,0.14699]
[1765398864160,1.43e-05,3401.0,3400.9,0.14699]
[1765398864563,1.57069039,3402.3,3402.0,2.2633]
[1765398864863,3.2078,3402.5,3402.0,2.2633]
[1765398865072,3.2078,3402.5,3402.1,0.14694]
[1765398865264,1.57069039,3402.8,3402.1,3.2078]
[1765398865466,3.2078,3402.9,3402.1,3.2078]
[1765398865762,3.2078,3402.9,3402.6,0.14691]
[1765398865964,4.77849039,3402.9,3402.1,0.0044143]
[1765398866266,1.57069039,3402.8,3402.1,0.0044143]
[1765398866666,4.77849039,3402.4,3402.1,0.0044143]
[1765398867259,3.2078,3402.4,3402.1,0.0044143]
[1765398867965,1.57411021,3402.7,3402.1,0.0044143]
[1765398868266,0.00341982,3402.7,3402.1,3.2122143]
[1765398868665,0.00341982,3402.7,3402.1,0.0044143]
[1765398869168,1.57411021,3402.7,3402.1,0.0044143]
[1765398869464,0.00341982,3402.7,3402.1,0.0044143]
[1765398869862,1.57411021,3402.7,3402.1,0.0044143]
[1765398870063,1.57069039,3402.6,3402.1,0.0044143]
[1765398870264,4.78191021,3402.7,3402.1,0.0044143]
[1765398870463,1.57069039,3402.6,3402.1,0.0044143]
[1765398870967,0.00341982,3402.7,3402.1,0.0044143]
[1765398871267,0.00341982,3402.7,3402.4,3.2078]
[1765398871468,0.00341982,3402.7,3402.6,0.14691]
[1765398873269,0.00341982,3402.7,3402.4,3.2078]
[1765398874567,0.00341982,3402.7,3402.4,5.5678]
[1765398875368,3.2078,3403.5,3403.2,2.36]
[1765398875369,4.77849039,3403.5,3403.2,2.36]
[1765398875569,3.2078,3403.5,3403.2,2.36]
[1765398875773,0.79730141,3403.4,3403.2,2.36]
[1765398876070,0.79730141,3403.3,3402.8,3.2078]
[1765398876266,0.79730141,3403.2,3402.8,3.2078]
[1765398876463,0.79730141,3403.1,3402.8,0.00309648]
[1765398876671,3.2078,3402.9,3402.8,0.00309648]
[1765398876867,4.00510141,3402.9,3402.8,0.00309648]
[1765398877372,0.79730141,3402.9,3402.8,0.00309648]
[1765398878267,0.00345029,3403.2,3402.8,0.15000648]
[1765398878468,0.79811861,3403.1,3402.8,0.15000648]
[1765398878669,0.79811861,3403.0,3402.8,0.15000648]
[1765398878870,0.79811861,3402.9,3402.8,0.15000648]
[1765398879274,0.00345029,3403.2,3402.8,0.15000648]
[1765398879477,0.79842049,3403.1,3402.8,0.15000648]
[1765398879769,0.00345029,3403.2,3402.9,3.2078]
[1765398879975,0.79837214,3403.1,3403.0,0.1469]
[1765398880275,0.79837214,3403.1,3402.9,3.2078]
[1765398880474,0.00345029,3403.2,3402.9,3.2078]
[1765398881067,0.00345029,3403.2,3402.9,3.3547]
[1765398882274,0.00345029,3403.2,3403.1,0.14689]
[1765398882675,0.82527476,3403.5,3403.2,2.36]
[1765398882876,3.2078,3403.7,3403.2,2.36]
[1765398883175,0.82526751,3403.6,3403.5,3.2078]
[1765398883378,3.2078,3404.1,3403.8,0.14686]
[1765398883680,3.21136865,3404.1,3404.0,2.36]
[1765398883983,4.03632326,3404.1,3404.0,2.36]
[1765398884277,3.21136865,3404.1,3404.0,2.36]
[1765398884577,3.2078,3404.6,3404.0,5.71465]
[1765398884766,0.82065957,3404.5,3404.1,0.14685]
[1765398884970,3.2078,3404.6,3404.0,5.7912372]
[1765398885171,0.855783,3404.5,3404.4,3.35464]
[1765398885373,3.2078,3405.8,3405.6,2.36]
[1765398885575,3.21039331,3405.8,3405.6,2.36364817]
[1765398885980,0.00259331,3405.8,3405.6,2.36364817]
[1765398886177,0.00259331,3405.8,3405.6,2.51042817]
[1765398886368,3.2078,3406.7,3405.6,8.36364817]
[1765398886678,3.2078,3407.0,3405.7,3.2078]
[1765398886868,3.2078,3406.4,3405.6,0.00364817]
[1765398887074,3.2078,3405.9,3405.6,0.00364817]
[1765398887272,3.2078,3405.9,3405.6,2.36]
[1765398888271,3.21037432,3405.9,3405.6,2.36345187]
[1765398888469,0.00257432,3405.9,3405.6,2.51023187]
[1765398889282,0.00257432,3405.9,3405.8,0.14678]
[1765398889874,3.2078,3406.6,3406.0,0.14677]
[1765398890177,3.2078,3407.5,3406.4,2.36]
[1765398890481,3.2078,3407.1,3406.4,2.36]
[1765398890678,3.2078,3406.7,3406.4,2.36]
[1765398890883,3.21054526,3406.7,3406.4,2.36]
[1765398891073,0.00274526,3406.7,3406.4,2.36]
[1765398892373,0.00274526,3406.7,3406.4,2.50675]
[1765398892677,3.2078,3408.2,3407.6,0.1467]
[1765398892879,3.2078,3408.2,3407.7,0.14669]
[1765398893279,3.2078,3408.2,3407.6,0.00440741]
[1765398893476,3.2078,3407.8,3407.6,0.00440741]
[1765398893676,6.0,3407.7,3406.6,0.14674]
[1765398893874,3.2078,3407.5,3406.4,5.5678]
[1765398894081,3.2078,3407.9,3407.2,2.50671]
[1765398894277,3.2078,3408.0,3407.2,5.5678]
[1765398894477,0.0032846,3408.2,3408.0,2.36]
[1765398894684,0.0032846,3408.2,3408.0,2.50969692]
[1765398894880,0.0032846,3408.2,3408.0,2.36301692]
[1765398895077,3.2110846,3408.2,3408.0,2.36301692]
[1765398895277,3.2110846,3408.2,3408.0,0.00301692]
[1765398895478,9.2110846,3408.2,3407.8,0.00440741]
[1765398895679,9.2110846,3408.2,3407.2,2.36]
[1765398895986,3.2078,3407.5,3406.9,3.2078]
[1765398896185,3.2078,3407.5,3406.7,0.14674]
[1765398896186,3.2078,3407.1,3405.9,0.14677]
[1765398896478,1.55770541,3407.0,3405.9,0.14955337]
[1765398896687,3.2078,3406.5,3406.1,0.00440741]
[1765398897074,0.00440741,3406.6,3406.1,0.00440741]
[1765398897277,0.00440741,3406.6,3406.1,0.15116741]
[1765398897474,0.87323055,3406.6,3406.4,2.36]
[1765398897691,0.00440741,3406.6,3406.1,0.00440741]
[1765398897985,3.2078,3406.2,3406.1,0.00440741]
[1765398898179,0.91208433,3406.2,3406.1,0.00440741]
[1765398898885,0.91208433,3406.2,3406.1,0.15116741]
[1765398900686,0.91208433,3406.2,3406.1,0.00440741]
[1765398900989,6.91208433,3406.2,3405.2,3.2078]
[1765398901283,4.76695184,3405.4,3404.9,0.14681]
[1765398901485,0.91208433,3405.3,3405.2,0.1468]
[1765398901791,0.91462077,3405.3,3405.2,3.35770062]
[1765398902088,3.2078,3405.8,3405.6,2.0982]
[1765398902383,3.2078,3406.1,3405.6,2.0982]
[1765398902779,3.2078,3405.8,3405.4,0.14679]
[1765398903182,3.21061816,3405.8,3405.3,3.2078]
[1765398903377,0.00281816,3405.8,3405.6,2.24499]
[1765398903583,0.00281816,3405.8,3405.7,3.2078]
[1765398903781,0.00281816,3405.8,3405.7,0.14678]
[1765398904079,3.2078,3406.5,3406.4,2.0982]
[1765398904282,1.55915184,3407.1,3406.4,2.0982]
[1765398904485,1.55915184,3407.5,3406.8,3.35453]
[1765398904781,4.76695184,3407.7,3406.9,0.14673]
[1765398904988,4.76981958,3407.7,3406.9,0.14673]
[1765398905181,0.00286774,3407.7,3406.8,3.2078]
[1765398905381,0.00440741,3407.6,3407.2,2.0982]
[1765398905784,1.55915184,3407.5,3406.9,0.00440741]
[1765398906095,1.55915184,3407.5,3406.0,3.2078]
[1765398906096,5.29858103,3407.1,3406.0,3.2078]
[1765398906283,1.56246446,3406.2,3405.2,3.21090062]
[1765398906591,1.5626883,3405.5,3405.2,0.00310062]
[1765398906796,2.09078103,3405.5,3405.2,0.00310062]
[1765398906991,2.09078103,3405.3,3405.2,0.00310062]
[1765398907193,0.0023339,3405.3,3405.2,0.00310062]
[1765398907585,1.56673975,3405.3,3405.2,0.00310062]
[1765398908389,0.0023339,3405.3,3405.2,0.00310062]
[1765398908587,0.0023339,3405.3,3405.2,3.35770062]
[1765398909287,1.56440585,3406.1,3405.6,2.0982]
[1765398909486,1.56440585,3406.5,3405.9,3.2078]
[1765398909690,1.56440585,3406.6,3405.9,3.2078]
[1765398909893,1.56440585,3406.6,3405.8,0.14678]
[1765398910093,1.56440585,3406.6,3406.0,3.2078]
[1765398910285,0.00717973,3406.6,3406.4,2.0202]
[1765398910694,0.00717973,3406.6,3406.4,5.228]
[1765398910897,4.77220585,3407.4,3406.6,0.14674]
[1765398911092,1.56440585,3407.3,3406.6,0.14674]
[1765398911895,1.57107861,3407.3,3406.6,0.14674]
[1765398912096,1.56440585,3407.1,3406.4,5.228]
[1765398912296,1.56440585,3406.5,3406.0,3.2078]
[1765398912498,1.56440585,3406.5,3405.8,0.14678]
[1765398912798,1.56440585,3406.3,3405.8,0.14678]
[1765398912996,3.2078,3406.6,3405.6,2.0982]
[1765398912997,1.56440585,3406.2,3405.6,2.0982]
[1765398913198,1.56440585,3406.0,3405.6,2.0982]
[1765398913403,1.56440585,3405.9,3405.6,2.0982]
[1765398913592,1.56440585,3406.0,3405.6,2.0982]
[1765398913793,1.56440585,3406.1,3405.6,2.24498]
[1765398914302,0.89054253,3406.0,3405.6,2.24498]
[1765398914497,0.89054253,3405.9,3405.6,2.0982]
[1765398914694,0.89054253,3405.8,3405.7,0.14678]
[1765398914900,4.253e-05,3405.8,3405.7,6.14678]
[1765398915097,1.56440585,3406.5,3406.0,0.14676]
[1765398915300,1.56440585,3406.7,3406.5,2.0202]
[1765398915499,1.56440585,3406.7,3406.6,0.14674]
[1765398915700,3.2078,3406.7,3405.8,0.14677]
[1765398915899,5.29858103,3406.3,3405.6,3.2078]
[1765398916095,5.29858103,3405.7,3405.2,3.21090062]
[1765398916404,0.1468,3405.2,3404.2,3.2078]
[1765398916599,3.2078,3404.4,3403.6,0.22383666]
[1765398916798,1.57522873,3404.4,3404.0,0.14685]
[1765398917001,1.57522873,3404.2,3404.0,0.14685]
[1765398917298,1.57410575,3404.1,3404.0,0.00375176]
[1765398917498,0.00373519,3404.2,3404.0,0.15060176]
[1765398918492,0.00373519,3404.2,3404.1,0.14685]
[1765398918697,0.00373519,3404.2,3404.0,0.00375176]
[1765398918900,3.21153519,3404.2,3404.0,0.00375176]
[1765398921197,4.78564094,3404.2,3402.9,3.3547]
[1765398921396,3.2078,3403.6,3403.2,0.14689]
[1765398921597,3.21153519,3404.2,3403.4,3.35468]
[1765398921793,3.2078,3404.0,3403.4,3.35468]
[1765398922200,0.00373519,3404.2,3403.4,3.36153625]
[1765398922399,3.2078,3404.0,3403.4,3.36153625]
[1765398923605,3.2078,3404.0,3403.4,0.15373625]
[1765398924105,0.00373519,3404.2,3403.9,3.2078]
[1765398924304,0.00373519,3404.2,3404.1,0.14685]
[1765398925201,0.00373519,3404.2,3403.5,3.2078]
[1765398926294,0.00373519,3404.2,3403.6,0.14687]
[1765398926702,0.00373519,3404.2,3404.1,3.35465]
[1765398926902,3.2078,3405.2,3404.8,2.0202]
[1765398927298,3.2078,3405.2,3405.1,0.14681]
[1765398927502,3.2078,3406.0,3405.2,0.1468]
[1765398927718,0.85777354,3405.9,3405.2,0.1468]
[1765398928001,3.2078,3405.6,3404.8,2.0202]
[1765398928309,0.85775009,3405.5,3404.7,3.2078]
[1765398928499,3.2078,3405.2,3404.7,3.2078]
[1765398929105,3.2078,3405.2,3404.8,1.9244]
[1765398929802,3.2078,3405.7,3405.6,1.9244]
[1765398930008,3.2078,3405.7,3405.6,2.07119]
[1765398930202,0.00698839,3405.9,3404.7,3.2078]
[1765398930404,0.00698839,3405.9,3404.8,1.9244]
[1765398930405,3.2078,3405.7,3404.8,1.9244]
[1765398930703,0.00698839,3405.9,3405.3,0.1468]
[1765398931904,0.86506829,3405.9,3404.8,5.1322]
[1765398932104,3.2078,3405.6,3404.6,3.21220741]
[1765398932306,0.85818076,3405.5,3404.6,3.21220741]
[1765398932500,3.2078,3405.4,3404.6,3.21220741]
[1765398932710,3.2078,3405.4,3404.8,1.9244]
[1765398933408,3.2078,3405.8,3405.2,0.1468]
[1765398934710,3.2078,3405.8,3405.3,0.1468]
[1765398935502,3.2078,3405.4,3404.8,1.9244]
[1765398935702,3.2078,3405.8,3404.8,1.9244]
[1765398935907,0.90021383,3405.7,3405.3,0.1468]
[1765398936205,0.00698839,3405.9,3405.3,0.1468]
[1765398936403,0.00698839,3405.9,3405.7,0.14678]
[1765398936718,0.00698839,3405.9,3405.8,0.14678]
[1765398937005,0.00698839,3405.9,3405.8,0.14997705]
[1765398937601,3.2078,3406.8,3406.4,1.9244]
[1765398937807,3.2078,3406.8,3405.9,0.14677]
[1765398938009,3.2078,3406.8,3406.0,3.2078]
[1765398938207,3.2078,3407.2,3406.2,0.14676]
[1765398938410,3.2078,3407.2,3406.6,3.2078]
[1765398938712,3.21477197,3407.2,3406.7,0.14674]
[1765398938914,3.21477197,3407.2,3406.6,0.00440741]
[1765398940009,3.21477197,3407.2,3406.2,3.2078]
[1765398940010,10.18847197,3407.2,3406.2,3.2078]
[1765398940216,3.35455,3406.6,3405.8,0.00319705]
[1765398940406,3.2078,3405.9,3405.1,3.2078]
[1765398941206,0.89819887,3405.8,3405.2,0.00440741]
[1765398941414,3.2078,3405.5,3405.2,0.00718116]
[1765398942214,41.69831416,3405.4,3405.2,0.00718116]
[1765398942421,0.89831416,3405.3,3404.2,0.14685]
[1765398942618,3.2078,3404.9,3404.2,0.14685]
[1765398942918,3.2078,3404.9,3404.4,0.14684]
[1765398943308,3.2078,3404.9,3404.4,0.14940852]
[1765398945704,0.00440741,3405.0,3404.5,3.2078]
[1765398945911,3.21220741,3405.0,3404.8,1.9244]
[1765398946113,3.21220741,3405.0,3404.6,0.14683]
[1765398946425,3.21220741,3405.0,3404.4,0.00256852]
[1765398946715,0.91761589,3404.9,3404.4,0.00256852]
[1765398947117,3.2078,3404.6,3403.6,3.2078]
[1765398947315,3.63540799,3404.0,3401.6,1.9244]
[1765398947519,2.46900799,3403.0,3401.6,1.9244]
[1765398947823,2.46902799,3402.4,3400.0,1.9244]
[1765398948120,0.00440741,3401.9,3401.3,0.00440741]
[1765398948507,0.00440741,3401.9,3401.3,0.15137741]
[1765398948709,3.2078,3401.5,3401.3,0.15137741]
[1765398949513,3.2078,3401.5,3401.3,0.00440741]
[1765398950813,0.91211247,3401.4,3401.3,0.00440741]
[1765398951620,0.91211247,3401.4,3400.8,0.00249147]
[1765398951920,3.2078,3400.9,3399.8,3.2078]
[1765398952122,3.2078,3400.2,3399.8,3.2078]
[1765398952924,3.2078,3400.2,3399.8,3.21015408]
[1765398953826,3.2078,3400.2,3399.8,0.00235408]
[1765398955025,2.66969658,3400.1,3399.8,0.00235408]
[1765398955330,2.66969658,3400.1,3398.3,0.1471]
[1765398955331,0.90469359,3400.0,3398.3,0.1471]
[1765398955627,3.2078,3398.5,3398.3,0.1471]
[1765398956027,3.2078,3398.5,3398.4,2.0715]
[1765398956222,0.00440741,3398.8,3398.4,8.07415426]
[1765398956424,0.00440741,3398.8,3398.7,3.2078]
[1765398956621,0.00440741,3398.8,3398.4,1.92706426]
[1765398956824,0.00440741,3398.8,3397.9,3.2078]
[1765398957020,4.97280299,3398.1,3397.1,3.2078]
[1765398957823,0.89922075,3398.0,3397.1,3.2078]
[1765398958028,0.89922075,3398.0,3397.1,3.21126622]
[1765398958332,0.0024427,3398.1,3397.5,3.2078]
[1765398958639,0.0024427,3398.1,3397.2,0.14715]
[1765398959135,3.2078,3398.0,3397.2,0.14715]
[1765398960325,0.0024427,3398.1,3397.2,0.14715]
[1765398960530,0.0024427,3398.1,3397.3,3.2078]
[1765398960828,0.0024427,3398.1,3397.2,0.14715]
[1765398960829,3.2102427,3398.1,3397.2,0.14715]
[1765398961029,3.2102427,3398.1,3397.4,3.2078]
[1765398961234,3.2102427,3398.1,3386.1,6.376]
[1765398961235,1.0988,3397.5,3396.9,2.5588]
[1765398961435,3.2078,3397.0,3393.9,1.915]
[1765398961641,2.3309027,3394.8,3393.9,1.915]
[1765398961940,1.55061729,3395.8,3395.0,1.915]
[1765398962129,0.8959257,3395.7,3395.0,1.915]
[1765398962330,0.8959257,3395.6,3395.0,1.91786438]
[1765398962536,0.8959257,3395.5,3395.0,1.91786438]
[1765398962734,0.8959257,3395.4,3395.0,1.91786438]
[1765398962926,0.8959257,3395.3,3395.0,1.91786438]
[1765398963132,0.8959257,3395.2,3395.0,1.91786438]
[1765398963331,3.2078,3395.1,3395.0,1.91786438]
[1765398964435,9.22997625,3395.1,3393.9,1.915]
[1765398964640,3.2078,3394.0,3393.9,1.915]
[1765398965539,3.22997625,3394.0,3393.9,1.9179489]
[1765398965843,3.2078,3394.5,3393.9,7.9179489]
[1765398966135,3.2078,3394.5,3393.9,1.9179489]
[1765398966336,3.2078,3394.0,3393.9,1.9179489]
[1765398966644,3.2078,3394.4,3393.9,1.9179489]
[1765398966837,3.2078,3394.0,3393.9,1.9179489]
[1765398968334,3.2078,3394.0,3392.7,3.2078]
[1765398968540,3.2078,3393.1,3391.5,3.2078]
[1765398968737,3.2078,3392.3,3391.5,3.2078]
[1765398969043,3.2078,3392.7,3392.1,2.14090732]
[1765398969536,0.00377503,3392.7,3392.1,2.14361099]
[1765398969737,3.2078,3393.2,3393.0,2.5945]
[1765398970744,3.2104661,3393.2,3393.0,2.5945]
[1765398972735,3.2104661,3393.2,3392.1,1.91770367]
[1765398972941,3.2078,3392.4,3392.1,1.91770367]
[1765398973437,0.0026661,3393.2,3393.0,2.5945]
[1765398973642,3.2078,3393.1,3393.0,2.5945]
[1765398973837,0.0026661,3393.2,3393.0,2.5945]
[1765398974141,0.00441417,3393.8,3393.1,6.0]
[1765398974343,3.2078,3394.5,3393.7,3.2078]
[1765398974543,3.2078,3394.5,3393.2,3.2078]
[1765398974840,3.2078,3394.1,3393.4,0.14731]
[1765398975146,3.21100085,3394.1,3393.5,0.14731]
[1765398975345,0.00762159,3394.1,3393.5,0.15173074]
[1765398975643,3.21542159,3394.1,3393.5,0.15173074]
[1765398976144,3.2078,3394.0,3393.5,0.00442074]
[1765398976356,0.00762159,3394.1,3393.9,2.5945]
[1765398976540,3.2078,3395.3,3394.0,3.2078]
[1765398976740,3.2078,3395.3,3394.5,3.2078]
[1765398976948,3.2078,3395.3,3394.9,0.14725]
[1765398977546,3.21113983,3395.3,3395.1,0.14724]
[1765398977744,0.00333983,3395.3,3395.2,3.2078]
[1765398978154,0.87164475,3396.2,3395.3,6.0]
[1765398978342,0.87164475,3396.1,3395.8,0.14721]
[1765398978542,3.2078,3396.4,3395.8,0.14721]
[1765398978747,0.87287352,3396.3,3395.7,2.5945]
[1765398978951,0.87287352,3396.2,3395.7,2.5945]
[1765398979142,0.00241909,3396.2,3395.7,2.5945]
[1765398979450,0.87405643,3396.1,3395.7,2.5945]
[1765398979650,0.87405643,3396.0,3395.7,2.5945]
[1765398979954,0.00241909,3396.2,3395.8,0.14721]
[1765398980255,0.86018451,3396.1,3395.8,0.14721]
[1765398980555,0.86018451,3396.0,3395.8,0.14721]
[1765398980857,0.86018451,3395.9,3395.8,0.14721]
[1765398981151,0.00241909,3396.2,3395.7,2.5945]
[1765398981352,0.86270629,3396.1,3395.7,2.5945]
[1765398981554,0.86270629,3396.0,3395.9,3.2078]
[1765398981749,0.00241909,3396.2,3395.9,3.355]
[1765398982059,0.00241909,3396.2,3396.1,0.1472]
[1765398982259,3.2078,3396.8,3396.6,2.5945]
[1765398982445,2.09078103,3397.6,3396.9,0.14716]
[1765398982762,2.09078103,3397.9,3396.9,0.14716]
[1765398983258,0.00442074,3397.7,3396.9,0.14716]
[1765398984248,0.00442074,3397.7,3396.6,2.5945]
[1765398984249,0.00442074,3397.7,3397.2,3.2078]
[1765398986152,2.4854,3397.5,3397.2,3.15141507]
[1765398986353,2.60579026,3397.4,3396.6,3.2078]
[1765398986560,3.2078,3396.8,3396.0,13.5858]
[1765398986758,2.08894627,3396.3,3395.6,3.21222074]
[1765398986963,2.08894627,3396.2,3395.6,3.21222074]
[1765398987162,2.08894627,3395.8,3395.6,3.21222074]
[1765398987357,2.60579026,3396.2,3395.6,3.21222074]
[1765398987662,3.2078,3396.0,3395.6,0.00442074]
[1765398987864,5.81359026,3396.0,3395.6,0.00442074]
[1765398988065,2.0904814,3395.8,3395.6,0.00442074]
[1765398988263,2.0904814,3395.7,3395.6,0.00442074]
[1765398989261,2.0904814,3395.8,3395.6,0.00442074]
[1765398989856,2.0904814,3395.9,3395.6,0.00442074]
[1765398990161,0.00442074,3396.0,3395.7,2.6129]
[1765398990364,0.00442074,3396.0,3395.6,3.21222074]
[1765398990759,0.00442074,3396.0,3395.6,3.35943074]
[1765398990961,0.00442074,3396.0,3395.7,2.76011]
[1765398991857,0.00442074,3396.0,3395.9,0.1472]
[1765398992458,3.2078,3396.8,3396.0,0.1472]
[1765398992662,3.2078,3396.8,3396.1,0.1472]
[1765398993360,3.21222074,3396.8,3396.1,0.1472]
[1765398993670,0.00442074,3396.8,3396.6,5.8207]
[1765398994064,0.00442074,3396.8,3396.7,0.14717]
[1765398994362,0.83851644,3396.8,3396.7,0.14717]
[1765398994963,0.83851644,3396.8,3396.0,3.2078]
[1765398995163,0.8340957,3396.7,3396.1,3.2078]
[1765398995467,0.8340957,3396.6,3396.1,3.2078]
[1765398995772,0.8340957,3396.5,3396.3,0.14719]
[1765398995962,0.8340957,3396.4,3396.3,0.14719]
[1765398996163,0.51308578,3396.4,3396.3,0.14719]
[1765398996469,0.00442074,3396.8,3396.7,0.14717]
[1765398996768,0.00442074,3396.8,3396.7,3.35497]
[1765398997159,0.00240567,3397.9,3396.7,9.2078]
[1765398997362,3.2078,3397.7,3396.7,3.2078]
[1765398997659,3.2078,3397.7,3397.0,0.14716]
[1765398997870,3.2078,3397.6,3397.0,0.14716]
[1765398998066,3.2078,3397.4,3397.0,0.14716]
[1765398998269,3.2078,3397.4,3396.7,3.2078]
[1765398998563,2.09339073,3397.6,3395.7,2.6129]
[1765398998564,3.2078,3397.0,3396.3,3.2078]
[1765398998764,3.2078,3396.4,3395.9,3.2078]
[1765398999073,3.2078,3396.4,3395.8,0.14721]
[1765398999265,2.0904814,3396.7,3395.8,0.14721]
[1765398999470,3.2078,3396.3,3395.8,0.14721]
[1765399000166,3.2078,3396.4,3396.0,0.1472]
[1765399000466,3.2078,3396.6,3395.7,2.6129]
[1765399000667,3.2078,3396.6,3396.2,0.14719]
[1765399001372,11.6311,3396.6,3395.6,0.15164074]
[1765399001671,3.2078,3396.1,3395.6,0.15164074]
[1765399001871,2.4854,3396.0,3395.6,0.00442074]
[1765399002173,3.2078,3396.1,3395.6,0.00442074]
[1765399002368,1.57405775,3395.9,3395.6,0.00442074]
[1765399002568,1.57405775,3395.8,3395.6,0.00442074]
[1765399002972,1.57405775,3395.7,3394.7,0.14726]
[1765399003167,4.78191857,3395.1,3394.7,0.14726]
[1765399003368,3.21020479,3395.1,3394.7,0.14726]
[1765399003770,5.0268416,3396.6,3395.9,0.1472]
[1765399003964,1.57626284,3396.3,3396.1,3.2078]
[1765399004271,0.00442074,3396.6,3396.1,3.2078]
[1765399004776,2.5136,3396.0,3395.9,0.00442074]
[1765399004970,1.58351107,3396.6,3395.9,0.00442074]
[1765399005170,0.00724823,3396.6,3396.3,3.2078]
[1765399005371,0.00724823,3396.6,3396.4,0.14718]
[1765399005566,0.00724823,3396.6,3396.5,0.14718]
[1765399007778,0.00724823,3396.6,3396.3,3.2078]
[1765399008081,0.00724823,3396.6,3395.9,3.21222074]
[1765399008282,0.69997114,3396.6,3395.9,3.21222074]
[1765399008575,0.00724823,3396.6,3396.3,3.2078]
[1765399009370,0.00724823,3396.6,3395.9,3.21222074]
[1765399010782,0.00724823,3396.6,3396.0,2.6129]
[1765399010980,0.00724823,3396.6,3396.4,3.2078]
[1765399011281,3.2078,3397.5,3396.4,9.2078]
[1765399011477,3.2078,3397.5,3396.9,3.2078]
[1765399011982,3.2078,3397.5,3396.0,5.21317322]
[1765399011983,3.2078,3398.2,3397.4,3.2078]
[1765399012281,0.00290933,3398.1,3397.4,3.21025578]
[1765399012586,2.5136,3397.6,3397.4,0.00245578]
[1765399013680,0.00290933,3398.1,3397.4,3.21025578]